fUST/lending_fUST_20250617
["ID","MTS","AMOUNT","RATE_DAILY","PERIOD"]
[366263758,1750165838235,-835.82910252,0.0002408,2]
[366263759,1750165838244,-3044.47559105,0.000241,2]
[366263760,1750165838254,-4771.0,0.000241,2]
[366263761,1750165838264,-4771.0,0.000241,2]
[366263762,1750165838273,-4771.0,0.000241,2]
[366263763,1750165838284,-4771.0,0.000241,2]
[366263764,1750165838294,-4771.0,0.000241,2]
[366263765,1750165838304,-4771.0,0.000241,2]
[366263766,1750165838313,-4771.0,0.000241,2]
[366263767,1750165838323,-1000.0,0.000241,5]
[366263768,1750165838332,-379.14819904,0.00024109,6]
[366263769,1750165838341,-460.0,0.00024109,6]
[366263770,1750165838351,-460.880334,0.00024109,6]
[366263771,1750165838360,-460.0,0.00024109,6]
[366263772,1750165838372,-460.0,0.00024109,6]
[366263773,1750165838381,-460.0,0.00024109,6]
[366263774,1750165838391,-350.0,0.00024109,6]
[366263775,1750165838400,-460.0,0.00024109,6]
[366263776,1750165838411,-370.0,0.00024109,6]
[366263777,1750165838535,-460.0,0.00024109,6]
[366263778,1750165838549,-427.29572331,0.00024109,6]
[366263779,1750165838559,-339.3346014,0.00024109,6]
[366263780,1750165838569,-460.0,0.00024109,6]
[366263781,1750165838579,-430.0,0.00024109,6]
[366263782,1750165838589,-460.0,0.00024109,6]
[366263783,1750165838599,-430.0,0.00024109,6]
[366263784,1750165838608,-320.0,0.00024109,6]
[366263785,1750165838618,-507.35531678,0.00024109,6]
[366263786,1750165838627,-1199.91,0.00024109,6]
[366263787,1750165838638,-595.72921266,0.00024109,6]
[366263788,1750165838648,-460.0,0.00024109,6]
[366263789,1750165838658,-460.0,0.00024109,6]
[366263790,1750165838667,-170.96226806,0.00024109,6]
[366263791,1750165838678,-460.0,0.00024109,6]
[366263792,1750165838687,-400.0,0.00024109,6]
[366263793,1750165838696,-460.0,0.00024109,6]
[366263794,1750165838706,-500.0,0.00024109,6]
[366263795,1750165838715,-460.0,0.00024109,6]
[366263796,1750165838725,-460.0,0.00024109,6]
[366263797,1750165838735,-430.0,0.00024109,6]
[366263798,1750165838744,-460.0,0.00024109,6]
[366263799,1750165838753,-460.0,0.00024109,6]
[366263800,1750165838763,-460.0,0.00024109,6]
[366263801,1750165838772,-460.0,0.00024109,6]
[366263802,1750165838782,-460.0,0.00024109,6]
[366263803,1750165838791,-460.0,0.00024109,6]
[366263804,1750165838801,-460.0,0.00024109,6]
[366263805,1750165838811,-430.0,0.00024109,6]
[366263806,1750165838820,-460.0,0.00024109,6]
[366263807,1750165838830,-474.52452538,0.00024109,6]
[366263808,1750165838842,-440.55223813,0.00024109,6]
[366263809,1750165838851,-460.0,0.00024109,6]
[366263810,1750165838861,-430.0,0.00024109,6]
[366263811,1750165838871,-553.72675205,0.00024109,6]
[366263812,1750165838882,-460.0,0.00024109,6]
[366263813,1750165838893,-460.0,0.00024109,6]
[366263814,1750165838903,-364.07672023,0.00024109,6]
[366263815,1750165838913,-460.0,0.00024109,6]
[366263816,1750165838923,-460.0,0.00024109,6]
[366263817,1750165838932,-430.50802997,0.00024109,6]
[366263818,1750165838941,-460.0,0.00024109,6]
[366263819,1750165838951,-460.0,0.00024109,6]
[366263820,1750165838961,-431.8900728,0.00024109,6]
[366263821,1750165838970,-460.0,0.00024109,6]
[366263822,1750165838980,-430.0,0.00024109,6]
[366263823,1750165838989,-460.0,0.00024109,6]
[366263824,1750165838999,-460.0,0.00024109,6]
[366263825,1750165839008,-460.0,0.00024109,6]
[366263826,1750165839018,-430.0,0.00024109,6]
[366263827,1750165839028,-391.02805571,0.00024109,6]
[366263828,1750165839038,-460.0,0.00024109,6]
[366263829,1750165839048,-460.0,0.00024109,6]
[366263830,1750165839058,-408.66269685,0.00024109,6]
[366263831,1750165839067,-180.24566591,0.00024109,6]
[366263832,1750165839077,-460.0,0.00024109,6]
[366263833,1750165839087,-460.0,0.00024109,6]
[366263834,1750165839098,-460.0,0.00024109,6]
[366263835,1750165839109,-460.0,0.00024109,6]
[366263836,1750165839120,-1136.55,0.00024109,6]
[366263837,1750165839131,-460.0,0.00024109,6]
[366263838,1750165839142,-460.0,0.00024109,6]
[366263839,1750165839151,-557.79015751,0.00024109,6]
[366263840,1750165839161,-461.253055,0.00024109,6]
[366263841,1750165839171,-460.0,0.00024109,6]
[366263842,1750165839180,-430.0,0.00024109,6]
[366263843,1750165839190,-430.0,0.00024109,6]
[366263844,1750165839199,-468.92092028,0.00024109,6]
[366263845,1750165839209,-432.32519125,0.00024109,6]
[366263846,1750165839218,-460.0,0.00024109,6]
[366263847,1750165839228,-460.0,0.00024109,6]
[366263848,1750165839238,-460.0,0.00024109,6]
[366263849,1750165839247,-460.0,0.00024109,6]
[366263850,1750165839257,-430.0,0.00024109,6]
[366263851,1750165839266,-432.89837996,0.00024109,6]
[366263852,1750165839276,-460.0,0.00024109,6]
[366263853,1750165839285,-430.0,0.00024109,6]
[366263854,1750165839294,-460.0,0.00024109,6]
[366263855,1750165839304,-460.0,0.00024109,6]
[366263856,1750165839313,-460.0,0.00024109,6]
[366263857,1750165839324,-430.0,0.00024109,6]
[366263858,1750165839334,-460.0,0.00024109,6]
[366263859,1750165839343,-460.0,0.00024109,6]
[366263860,1750165839352,-460.0,0.00024109,6]
[366263861,1750165839362,-527.02358768,0.00024109,6]
[366263862,1750165839372,-432.51120455,0.00024109,6]
[366263863,1750165839381,-460.0,0.00024109,6]
[366263864,1750165839392,-460.0,0.00024109,6]
[366263865,1750165839402,-377.21477393,0.00024109,6]
[366263866,1750165839411,-430.0,0.00024109,6]
[366263867,1750165839421,-280.0,0.00024109,6]
[366263868,1750165839431,-460.0,0.00024109,6]
[366263869,1750165839441,-562.19419776,0.00024109,6]
[366263870,1750165839451,-409.56809522,0.00024109,6]
[366263871,1750165839461,-430.0,0.00024109,6]
[366263872,1750165839471,-460.0,0.00024109,6]
[366263873,1750165839481,-460.0,0.00024109,6]
[366263874,1750165839491,-460.0,0.00024109,6]
[366263875,1750165839502,-460.0,0.00024109,6]
[366263876,1750165839511,-432.20839296,0.00024109,6]
[366263877,1750165839522,-440.0,0.00024109,6]
[366263878,1750165839532,-460.0,0.00024109,6]
[366263879,1750165839542,-460.0,0.00024109,6]
[366263880,1750165839551,-449.13128361,0.00024109,6]
[366263881,1750165839561,-460.0,0.00024109,6]
[366263882,1750165839571,-460.0,0.00024109,6]
[366263883,1750165839580,-460.0,0.00024109,6]
[366263884,1750165839590,-460.0,0.00024109,6]
[366263885,1750165839599,-460.0,0.00024109,6]
[366263886,1750165839609,-460.0,0.00024109,6]
[366263887,1750165839618,-460.0,0.00024109,6]
[366263888,1750165839628,-480.0693488,0.00024109,6]
[366263889,1750165839638,-398.93975726,0.00024109,6]
[366263890,1750165839648,-1653.26,0.00024109,2]
[366263891,1750165839658,-460.0,0.00024109,6]
[366263892,1750165839668,-460.0,0.00024109,6]
[366263893,1750165839678,-460.0,0.00024109,6]
[366263894,1750165839687,-460.0,0.00024109,6]
[366263895,1750165839697,-878.72,0.00024109,6]
[366263896,1750165839707,-460.0,0.00024109,6]
[366263897,1750165839718,-486.57744035,0.00024109,6]
[366263898,1750165839728,-460.0,0.00024109,6]
[366263899,1750165839738,-460.0,0.00024109,6]
[366263900,1750165839748,-250.26799731,0.00024109,6]
[366263901,1750165839758,-460.0,0.00024109,6]
[366263902,1750165839767,-460.0,0.00024109,6]
[366263904,1750165839777,-460.0,0.00024109,6]
[366263905,1750165839787,-467.57672214,0.00024109,6]
[366263906,1750165839797,-460.0,0.00024109,6]
[366263907,1750165839807,-460.0,0.00024109,6]
[366263908,1750165839817,-460.0,0.00024109,6]
[366263909,1750165839827,-500.0,0.00024109,6]
[366263911,1750165839837,-500.0,0.00024109,6]
[366263912,1750165839846,-500.0,0.00024109,6]
[366263913,1750165839956,-500.0,0.00024109,6]
[366263914,1750165839968,-500.0,0.00024109,6]
[366263915,1750165839977,-500.0,0.00024109,6]
[366263916,1750165839987,-430.0,0.00024109,6]
[366263917,1750165839997,-500.0,0.00024109,6]
[366263918,1750165840007,-500.0,0.00024109,6]
[366263919,1750165840017,-500.0,0.00024109,6]
[366263920,1750165840026,-500.0,0.00024109,6]
[366263921,1750165840035,-500.0,0.00024109,6]
[366263922,1750165840045,-500.0,0.00024109,6]
[366263923,1750165840055,-500.0,0.00024109,6]
[366263924,1750165840064,-500.0,0.00024109,6]
[366263925,1750165840074,-460.0,0.00024109,6]
[366263926,1750165840084,-460.0,0.00024109,6]
[366263927,1750165840093,-460.0,0.00024109,6]
[366263928,1750165840102,-374.48478447,0.00024109,6]
[366263929,1750165840112,-460.0,0.00024109,6]
[366263930,1750165840121,-388.41173721,0.00024109,6]
[366263931,1750165840131,-194.61999225,0.00024109,6]
[366263932,1750165840142,-460.0,0.00024109,6]
[366263933,1750165840152,-460.0,0.00024109,6]
[366263934,1750165840163,-460.0,0.00024109,6]
[366263935,1750165840174,-460.0,0.00024109,6]
[366263936,1750165840184,-460.0,0.00024109,6]
[366263937,1750165840193,-460.0,0.00024109,6]
[366263938,1750165840203,-460.0,0.00024109,6]
[366263939,1750165840212,-460.0,0.00024109,6]
[366263940,1750165840222,-460.0,0.00024109,6]
[366263941,1750165840231,-460.0,0.00024109,6]
[366263942,1750165840241,-460.0,0.00024109,6]
[366263943,1750165840250,-389.63629964,0.00024109,6]
[366263944,1750165840259,-460.0,0.00024109,6]
[366263945,1750165840269,-460.0,0.00024109,6]
[366263946,1750165840278,-460.0,0.00024109,6]
[366263947,1750165840288,-322.39254373,0.00024109,6]
[366263948,1750165840297,-460.0,0.00024109,6]
[366263949,1750165840306,-269.70899425,0.00024109,6]
[366263950,1750165840316,-460.0,0.00024109,6]
[366263951,1750165840326,-1304.72,0.00024109,6]
[366263952,1750165840335,-447.67012891,0.00024109,6]
[366263953,1750165840345,-460.0,0.00024109,6]
[366263954,1750165840354,-460.0,0.00024109,6]
[366263955,1750165840364,-460.0,0.00024109,6]
[366263956,1750165840374,-407.44446503,0.00024109,6]
[366263957,1750165840385,-460.0,0.00024109,6]
[366263958,1750165840395,-460.0,0.00024109,6]
[366263959,1750165840405,-460.0,0.00024109,6]
[366263960,1750165840414,-460.0,0.00024109,6]
[366263961,1750165840423,-460.0,0.00024109,6]
[366263962,1750165840433,-446.72315125,0.00024109,6]
[366263963,1750165840443,-500.0,0.00024109,6]
[366263964,1750165840453,-500.0,0.00024109,6]
[366263965,1750165840462,-637.4035894,0.00024109,6]
[366263966,1750165840471,-440.0,0.00024109,6]
[366263967,1750165840481,-427.82461983,0.00024109,6]
[366263968,1750165840490,-460.0,0.00024109,6]
[366263969,1750165840500,-460.0,0.00024109,6]
[366263970,1750165840510,-460.0,0.00024109,6]
[366263971,1750165840520,-460.0,0.00024109,6]
[366263972,1750165840530,-460.0,0.00024109,6]
[366263973,1750165840540,-460.0,0.00024109,6]
[366263974,1750165840551,-460.0,0.00024109,6]
[366263975,1750165840561,-460.0,0.00024109,6]
[366263976,1750165840572,-460.0,0.00024109,6]
[366263977,1750165840582,-460.0,0.00024109,6]
[366263978,1750165840591,-511.53692998,0.00024109,6]
[366263979,1750165840601,-460.0,0.00024109,6]
[366263980,1750165840610,-369.67707577,0.00024109,6]
[366263981,1750165840620,-460.0,0.00024109,6]
[366263982,1750165840629,-413.63627246,0.00024109,6]
[366263983,1750165840638,-460.0,0.00024109,6]
[366263984,1750165840648,-460.0,0.00024109,6]
[366263985,1750165840658,-460.0,0.00024109,6]
[366263986,1750165840668,-460.0,0.00024109,6]
[366263987,1750165840677,-460.0,0.00024109,6]
[366263988,1750165840687,-152.61715871,0.00024109,6]
[366263989,1750165840696,-340.0,0.00024109,6]
[366263990,1750165840707,-486.7718507,0.00024109,6]
[366263992,1750165840716,-363.9071636,0.00024109,6]
[366263994,1750165840726,-460.0,0.00024109,6]
[366263995,1750165840736,-460.0,0.00024109,6]
[366263997,1750165840745,-460.0,0.00024109,6]
[366263998,1750165840755,-460.0,0.00024109,6]
[366263999,1750165840764,-460.0,0.00024109,6]
[366264000,1750165840774,-460.0,0.00024109,6]
[366264001,1750165840783,-460.0,0.00024109,6]
[366264002,1750165840793,-460.0,0.00024109,6]
[366264003,1750165840802,-460.0,0.00024109,6]
[366264004,1750165840812,-460.0,0.00024109,6]
[366264005,1750165840822,-460.0,0.00024109,6]
[366264006,1750165840831,-515.48,0.00024109,6]
[366264007,1750165840845,-439.28915816,0.00024109,6]
[366264008,1750165840855,-414.57656821,0.00024109,6]
[366264009,1750165840864,-460.0,0.00024109,6]
[366264010,1750165840874,-440.0,0.00024109,6]
[366264011,1750165840885,-7113.65,0.00024109,6]
[366264012,1750165840895,-504.59721843,0.00024109,6]
[366264013,1750165840905,-460.0,0.00024109,6]
[366264014,1750165840915,-400.0,0.00024109,6]
[366264015,1750165840925,-1801.7,0.00024109,6]
[366264016,1750165840935,-460.0,0.00024109,6]
[366264018,1750165840945,-690.5,0.00024109,6]
[366264019,1750165840955,-460.0,0.00024109,6]
[366264020,1750165840965,-460.0,0.00024109,6]
[366264021,1750165840974,-432.47886028,0.00024109,6]
[366264022,1750165840984,-460.0,0.00024109,6]
[366264023,1750165840994,-585.09638383,0.00024109,6]
[366264024,1750165841003,-403.09253174,0.00024109,6]
[366264025,1750165841013,-460.0,0.00024109,6]
[366264026,1750165841022,-460.0,0.00024109,6]
[366264027,1750165841032,-460.0,0.00024109,6]
[366264028,1750165841042,-440.0,0.00024109,6]
[366264029,1750165841051,-460.0,0.00024109,6]
[366264030,1750165841061,-460.0,0.00024109,6]
[366264031,1750165841071,-460.0,0.00024109,6]
[366264032,1750165841081,-460.0,0.00024109,6]
[366264033,1750165841092,-460.0,0.00024109,6]
[366264034,1750165841102,-460.0,0.00024109,6]
[366264035,1750165841112,-503.16432968,0.00024109,6]
[366264036,1750165841121,-505.29131835,0.00024109,6]
[366264037,1750165841132,-460.0,0.00024109,6]
[366264038,1750165841142,-441.31271171,0.00024109,6]
[366264039,1750165841152,-460.0,0.00024109,6]
[366264040,1750165841246,-461.99457496,0.00024109,6]
[366264041,1750165841256,-2451.9,0.00024109,6]
[366264042,1750165841265,-420.0,0.00024109,6]
[366264043,1750165841275,-460.0,0.00024109,6]
[366264044,1750165841285,-460.0,0.00024109,6]
[366264045,1750165841295,-460.0,0.00024109,6]
[366264046,1750165841304,-460.0,0.00024109,6]
[366264047,1750165841315,-460.0,0.00024109,6]
[366264048,1750165841325,-460.0,0.00024109,6]
[366264049,1750165841334,-460.0,0.00024109,6]
[366264050,1750165841344,-460.0,0.00024109,6]
[366264051,1750165841354,-460.0,0.00024109,6]
[366264052,1750165841364,-460.0,0.00024109,6]
[366264053,1750165841374,-2119.21,0.00024109,6]
[366264054,1750165841383,-2119.21,0.00024109,6]
[366264055,1750165841394,-2119.21,0.00024109,6]
[366264056,1750165841404,-2119.21,0.00024109,6]
[366264057,1750165841414,-460.0,0.00024109,6]
[366264058,1750165841423,-2119.21,0.00024109,6]
[366264059,1750165841433,-2119.21,0.00024109,6]
[366264060,1750165841443,-2119.21,0.00024109,6]
[366264061,1750165841452,-2119.21,0.00024109,6]
[366264062,1750165841463,-2119.21,0.00024109,6]
[366264063,1750165841473,-1127.69,0.00024109,6]
[366264064,1750165841483,-2119.21,0.00024109,6]
[366264065,1750165841493,-500.0,0.00024109,6]
[366264066,1750165841502,-2119.21,0.00024109,6]
[366264067,1750165841512,-503.24745646,0.00024109,6]
[366264068,1750165841521,-2119.21,0.00024109,6]
[366264069,1750165841531,-2119.21,0.00024109,6]
[366264070,1750165841541,-2119.21,0.00024109,6]
[366264071,1750165841551,-2119.21,0.00024109,6]
[366264072,1750165841561,-460.0,0.00024109,6]
[366264073,1750165841570,-2119.21,0.00024109,6]
[366264074,1750165841581,-2119.21,0.00024109,6]
[366264075,1750165841591,-2119.21,0.00024109,6]
[366264076,1750165841600,-2119.21,0.00024109,6]
[366264077,1750165841610,-2119.21,0.00024109,6]
[366264078,1750165841620,-2119.21,0.00024109,6]
[366264079,1750165841630,-2119.21,0.00024109,6]
[366264080,1750165841641,-2119.21,0.00024109,6]
[366264081,1750165841651,-975.09,0.00024109,6]
[366264082,1750165841660,-2119.40694717,0.00024109,6]
[366264083,1750165841670,-460.0,0.00024109,6]
[366264084,1750165841679,-460.0,0.00024109,6]
[366264085,1750165841690,-460.0,0.00024109,6]
[366264086,1750165841700,-460.0,0.00024109,6]
[366264087,1750165841710,-460.0,0.00024109,6]
[366264088,1750165841720,-460.0,0.00024109,6]
[366264089,1750165841729,-430.0,0.00024109,6]
[366264090,1750165841739,-706.94,0.00024109,6]
[366264091,1750165841749,-460.0,0.00024109,6]
[366264092,1750165841759,-460.0,0.00024109,6]
[366264093,1750165841770,-502.93879887,0.00024109,6]
[366264094,1750165841780,-460.0,0.00024109,6]
[366264095,1750165841790,-460.0,0.00024109,6]
[366264096,1750165841799,-400.0,0.00024109,6]
[366264097,1750165841809,-496.04,0.00024109,6]
[366264098,1750165841819,-460.0,0.00024109,6]
[366264099,1750165841828,-460.0,0.00024109,6]
[366264100,1750165841837,-848.76,0.00024109,6]
[366264101,1750165841847,-1401.3,0.00024109,6]
[366264102,1750165841857,-1042.16,0.00024109,6]
[366264103,1750165841867,-521.09,0.00024109,6]
[366264104,1750165841877,-460.0,0.00024109,6]
[366264105,1750165841887,-460.0,0.00024109,6]
[366264106,1750165841896,-6005.6,0.00024109,6]
[366264107,1750165841906,-460.0,0.00024109,6]
[366264108,1750165841917,-460.0,0.00024109,6]
[366264109,1750165841926,-4967.53,0.00024109,6]
[366264110,1750165841936,-460.0,0.00024109,6]
[366264111,1750165841946,-713.33,0.00024109,6]
[366264112,1750165841955,-480.63563063,0.00024109,6]
[366264113,1750165841965,-1612.56,0.00024109,6]
[366264114,1750165841975,-431.61577593,0.00024109,6]
[366264115,1750165841984,-460.0,0.00024109,6]
[366264116,1750165841994,-460.0,0.00024109,6]
[366264117,1750165842004,-460.0,0.00024109,6]
[366264118,1750165842013,-460.0,0.00024109,6]
[366264119,1750165842023,-215.86299397,0.00024109,6]
[366264120,1750165842033,-337.62674489,0.00024109,6]
[366264121,1750165842043,-460.0,0.00024109,6]
[366264122,1750165842053,-5766.87,0.00024109,6]
[366264123,1750165842063,-1417.43,0.00024109,6]
[366264124,1750165842072,-460.0,0.00024109,6]
[366264125,1750165842081,-460.0,0.00024109,6]
[366264126,1750165842091,-460.0,0.00024109,6]
[366264127,1750165842101,-463.42122309,0.00024109,6]
[366264128,1750165842111,-460.0,0.00024109,6]
[366264129,1750165842121,-460.0,0.00024109,6]
[366264130,1750165842131,-384.32798127,0.00024109,6]
[366264131,1750165842141,-1181.76,0.00024109,6]
[366264132,1750165842150,-460.0,0.00024109,6]
[366264133,1750165842160,-460.0,0.00024109,6]
[366264134,1750165842170,-460.0,0.00024109,6]
[366264135,1750165842179,-460.0,0.00024109,6]
[366264136,1750165842189,-598.41627172,0.00024109,6]
[366264137,1750165842199,-411.93621007,0.00024109,2]
[366264138,1750165842208,-416.11999583,0.00024109,6]
[366264139,1750165842218,-405.51747728,0.00024109,6]
[366264140,1750165842228,-465.19838748,0.00024109,6]
[366264141,1750165842237,-460.0,0.00024109,6]
[366264142,1750165842247,-460.0,0.00024109,6]
[366264143,1750165842256,-467.57673825,0.00024109,6]
[366264144,1750165842266,-460.0,0.00024109,6]
[366264145,1750165842276,-374.3411725,0.00024109,6]
[366264146,1750165842285,-2284.79,0.00024109,6]
[366264147,1750165842295,-430.0,0.00024109,6]
[366264148,1750165842304,-460.0,0.00024109,6]
[366264149,1750165842315,-460.0,0.00024109,6]
[366264150,1750165842324,-669.9,0.00024109,6]
[366264151,1750165842334,-460.0,0.00024109,6]
[366264152,1750165842344,-460.0,0.00024109,6]
[366264153,1750165842354,-1703.81,0.00024109,6]
[366264154,1750165842455,-460.0,0.00024109,6]
[366264155,1750165842465,-460.0,0.00024109,6]
[366264156,1750165842475,-460.0,0.00024109,6]
[366264157,1750165842484,-460.0,0.00024109,6]
[366264158,1750165842494,-435.79006434,0.00024109,6]
[366264159,1750165842503,-2229.99,0.00024109,6]
[366264160,1750165842513,-460.0,0.00024109,6]
[366264161,1750165842523,-900.42,0.00024109,6]
[366264162,1750165842532,-460.0,0.00024109,6]
[366264163,1750165842541,-519.72652483,0.00024109,6]
[366264164,1750165842550,-460.0,0.00024109,6]
[366264165,1750165842561,-460.0,0.00024109,6]
[366264166,1750165842571,-460.0,0.00024109,6]
[366264167,1750165842581,-2189.19,0.00024109,6]
[366264168,1750165842590,-460.0,0.00024109,6]
[366264169,1750165842600,-601.12,0.00024109,6]
[366264170,1750165842609,-426.62652211,0.00024109,6]
[366264171,1750165842619,-436.56957506,0.00024109,6]
[366264172,1750165842629,-460.0,0.00024109,6]
[366264173,1750165842640,-460.0,0.00024109,6]
[366264176,1750165842650,-460.0,0.00024109,6]
[366264178,1750165842660,-460.0,0.00024109,6]
[366264179,1750165842670,-440.0,0.00024109,6]
[366264180,1750165842693,-645.19,0.00024109,6]
[366264181,1750165842704,-918.85,0.00024109,6]
[366264182,1750165842714,-460.0,0.00024109,6]
[366264183,1750165842726,-441.80511731,0.00024109,6]
[366264184,1750165842736,-460.0,0.00024109,6]
[366264185,1750165842746,-460.0,0.00024109,6]
[366264186,1750165842756,-460.0,0.00024109,6]
[366264187,1750165842766,-460.0,0.00024109,6]
[366264188,1750165842777,-281.25366821,0.00024109,6]
[366264189,1750165842787,-862.99,0.00024109,6]
[366264190,1750165842797,-460.0,0.00024109,6]
[366264191,1750165842807,-432.74643172,0.00024109,6]
[366264193,1750165842818,-460.0,0.00024109,6]
[366264194,1750165842828,-1155.02,0.00024109,6]
[366264195,1750165842841,-460.0,0.00024109,6]
[366264196,1750165842851,-290.40767549,0.00024109,6]
[366264197,1750165842861,-372.53739557,0.00024109,6]
[366264198,1750165842872,-460.0,0.00024109,6]
[366264199,1750165842882,-6023.89,0.00024109,6]
[366264200,1750165842893,-442.52273543,0.00024109,6]
[366264201,1750165842903,-460.0,0.00024109,6]
[366264202,1750165842913,-433.96070124,0.00024109,6]
[366264203,1750165842924,-460.0,0.00024109,6]
[366264204,1750165842935,-547.86262822,0.00024109,6]
[366264205,1750165842946,-460.0,0.00024109,6]
[366264206,1750165842956,-369.81196213,0.00024109,6]
[366264207,1750165842966,-1800.7,0.00024109,6]
[366264208,1750165842976,-463.30851933,0.00024109,6]
[366264209,1750165842986,-469.35,0.00024109,6]
[366264210,1750165843009,-460.0,0.00024109,6]
[366264211,1750165843036,-436.61590364,0.00024109,6]
[366264212,1750165843058,-460.0,0.00024109,6]
[366264213,1750165843082,-193.37338894,0.00024109,6]
[366264214,1750165843106,-263.49703798,0.00024109,6]
[366264215,1750165843127,-398.23627875,0.00024109,6]
[366264216,1750165843151,-460.0,0.00024109,6]
[366264221,1750165843173,-460.0,0.00024109,6]
[366264222,1750165843190,-756.44,0.00024109,6]
[366264223,1750165843207,-460.0,0.00024109,6]
[366264224,1750165843229,-460.0,0.00024109,6]
[366264225,1750165843256,-1375.04,0.00024109,6]
[366264226,1750165843273,-460.0,0.00024109,6]
[366264227,1750165843287,-460.0,0.00024109,6]
[366264228,1750165843310,-460.0,0.00024109,6]
[366264229,1750165843324,-461.87243434,0.00024109,6]
[366264230,1750165843346,-585.43,0.00024109,6]
[366264231,1750165843361,-460.0,0.00024109,6]
[366264232,1750165843380,-460.0,0.00024109,6]
[366264233,1750165843402,-858.12,0.00024109,6]
[366264234,1750165843421,-460.0,0.00024109,6]
[366264235,1750165843441,-460.0,0.00024109,6]
[366264236,1750165843458,-2895.33,0.00024109,6]
[366264237,1750165843476,-460.0,0.00024109,6]
[366264238,1750165843496,-2033.31,0.00024109,6]
[366264239,1750165843514,-460.0,0.00024109,6]
[366264240,1750165843532,-410.55375576,0.00024109,6]
[366264241,1750165843549,-371.11968782,0.00024109,6]
[366264242,1750165843567,-460.0,0.00024109,6]
[366264244,1750165843584,-5921.4,0.00024109,6]
[366264246,1750165843601,-460.0,0.00024109,6]
[366264247,1750165843618,-460.0,0.00024109,6]
[366264248,1750165843636,-4551.35,0.00024109,6]
[366264249,1750165843654,-887.03,0.00024109,6]
[366264250,1750165843670,-460.0,0.00024109,6]
[366264251,1750165843688,-503.91,0.00024109,6]
[366264252,1750165843706,-370.0,0.00024109,6]
[366264253,1750165843723,-1365.39,0.00024109,6]
[366264254,1750165843742,-158.6829329,0.00024109,6]
[366264255,1750165843760,-460.0,0.00024109,6]
[366264256,1750165843777,-754.37,0.00024109,6]
[366264257,1750165843796,-460.0,0.00024109,6]
[366264258,1750165843813,-440.0,0.00024109,6]
[366264259,1750165843831,-449.58,0.00024109,6]
[366264260,1750165843845,-430.0,0.00024109,6]
[366264261,1750165843855,-440.0,0.00024109,6]
[366264262,1750165843865,-460.0,0.00024109,6]
[366264263,1750165843876,-460.0,0.00024109,6]
[366264264,1750165843886,-460.0,0.00024109,6]
[366264265,1750165843896,-460.0,0.00024109,6]
[366264266,1750165843906,-460.0,0.00024109,6]
[366264267,1750165843916,-608.13,0.00024109,6]
[366264268,1750165844090,-460.0,0.00024109,6]
[366264269,1750165844120,-460.0,0.00024109,6]
[366264270,1750165844130,-4372.84,0.00024109,6]
[366264271,1750165844140,-369.2439411,0.00024109,6]
[366264272,1750165844150,-460.0,0.00024109,6]
[366264273,1750165844159,-537.74457464,0.00024109,6]